bitfinex/quotes_BTCUSD_20251024
["timestamp","ask_amount","ask_price","bid_price","bid_amount"]
[1761309345939,0.62276982,111490.0,111480.0,0.25172139]
[1761309346156,0.62276982,111490.0,111480.0,0.17940437]
[1761309346583,0.37618228,111480.0,111460.0,0.00034481]
[1761309346791,0.37898512,111480.0,111470.0,0.17942047]
[1761309347007,0.60342512,111480.0,111470.0,0.17942047]
[1761309347430,0.60342512,111480.0,111460.0,0.17977774]
[1761309347893,0.00711357,111470.0,111460.0,0.00034481]
[1761309348101,0.00711357,111470.0,111460.0,0.17978137]
[1761309348735,0.00991669,111470.0,111460.0,0.17978137]
[1761309348954,0.36019798,111470.0,111460.0,0.00034481]
[1761309349162,0.7123711,111470.0,111460.0,0.17978137]
[1761309349365,0.7123711,111470.0,111460.0,0.56278653]
[1761309349366,0.36208981,111470.0,111460.0,0.56278653]
[1761309349586,0.56708312,111470.0,111460.0,0.56278653]
[1761309349793,0.56708303,111470.0,111460.0,0.21571601]
[1761309350211,0.03618228,111490.0,111460.0,0.65260554]
[1761309350421,0.03618228,111490.0,111480.0,0.52647489]
[1761309350422,0.2462866,111490.0,111480.0,0.52647489]
[1761309350628,0.22700279,111490.0,111480.0,0.17940437]
[1761309350864,0.22700279,111490.0,111480.0,0.25099086]
[1761309351088,0.22700242,111490.0,111480.0,0.25166599]
[1761309351335,0.22700242,111490.0,111480.0,0.1800795]
[1761309352227,0.22700242,111490.0,111480.0,0.52715002]
[1761309352452,0.00280242,111490.0,111480.0,0.61696903]
[1761309352703,0.00280242,111490.0,111480.0,0.96403955]
[1761309352923,0.00280242,111490.0,111480.0,1.05385856]
[1761309353136,0.00280242,111490.0,111480.0,0.70678804]
[1761309355248,0.34,111510.0,111480.0,0.70678804]
[1761309355249,0.34,111510.0,111500.0,0.17937219]
[1761309355459,0.02389152,111530.0,111510.0,0.17934411]
[1761309355664,0.68980129,111520.0,111510.0,0.17934411]
[1761309355871,0.70907812,111520.0,111510.0,0.17935611]
[1761309356488,0.70956245,111520.0,111510.0,0.17935611]
[1761309358455,0.56408433,111520.0,111510.0,0.17935611]
[1761309358975,1.22382385,111520.0,111490.0,0.17937416]
[1761309359199,0.00711357,111510.0,111500.0,0.1793715]
[1761309359872,0.69008562,111520.0,111510.0,0.17935611]
[1761309360136,0.69008562,111520.0,111500.0,0.1793715]
[1761309360137,0.70934917,111520.0,111500.0,0.1793715]
[1761309360342,0.00711357,111510.0,111500.0,0.1793715]
[1761309361199,0.46648562,111520.0,111510.0,0.17935611]
[1761309361417,0.7090747,111520.0,111500.0,0.1793715]
[1761309361644,0.26917601,111510.0,111490.0,0.00033754]
[1761309361864,0.5861247,111500.0,111490.0,0.17972558]
[1761309362081,0.46600129,111500.0,111490.0,0.17972558]
[1761309362306,0.68924129,111500.0,111490.0,0.00033754]
[1761309362498,0.70851515,111500.0,111490.0,0.00033754]
[1761309363248,0.88788734,111500.0,111490.0,0.00033754]
[1761309363433,1.44551709,111500.0,111490.0,0.00033754]
[1761309364095,1.47757345,111500.0,111490.0,0.00033754]
[1761309364287,1.50176647,111500.0,111490.0,0.00033754]
[1761309364501,1.27852647,111500.0,111490.0,0.00033754]
[1761309364689,1.73824647,111500.0,111490.0,0.00033754]
[1761309364915,1.70619011,111500.0,111490.0,0.00033754]
[1761309365428,1.20458791,111500.0,111490.0,0.00033754]
[1761309365630,0.17942047,111470.0,111460.0,0.0002]
[1761309365779,1.07639068,111470.0,111460.0,0.0002]
[1761309366153,0.53553888,111470.0,111460.0,0.0002]
[1761309366642,0.35611841,111470.0,111460.0,0.0002]
[1761309366870,0.53553888,111470.0,111460.0,0.00034481]
[1761309367082,0.59283841,111470.0,111460.0,0.00034481]
[1761309367288,0.75095698,111470.0,111460.0,0.00034481]
[1761309367705,1.62469521,111470.0,111460.0,0.00034481]
[1761309368137,1.11506252,111470.0,111460.0,0.00034481]
[1761309368341,1.62469521,111470.0,111460.0,0.00034481]
[1761309368769,1.68498303,111470.0,111460.0,0.00034481]
[1761309368981,1.71712375,111470.0,111460.0,0.00034481]
[1761309369875,1.69301821,111470.0,111460.0,0.00034481]
[1761309370105,1.69273821,111470.0,111460.0,0.00034481]
[1761309370365,1.71680815,111470.0,111460.0,0.00034481]
[1761309371196,1.25744815,111470.0,111460.0,0.00034481]
[1761309371401,1.71680815,111470.0,111460.0,0.00135771]
[1761309371614,0.6915692,111470.0,111460.0,0.00135771]
[1761309371819,1.68462743,111470.0,111460.0,0.00135771]
[1761309371999,1.23439025,111470.0,111460.0,0.00135771]
[1761309372148,1.69363025,111470.0,111460.0,0.00135771]
[1761309372553,1.23439025,111470.0,111460.0,0.00135771]
[1761309372765,1.69363025,111470.0,111460.0,0.00135771]
[1761309373237,0.66749926,111470.0,111460.0,0.00135771]
[1761309373390,0.88989926,111470.0,111460.0,0.00135771]
[1761309373586,1.02181702,111470.0,111460.0,0.00135771]
[1761309373785,0.71035879,111470.0,111460.0,0.00135771]
[1761309373997,0.43262265,111470.0,111460.0,0.18079427]
[1761309374242,0.2368,111490.0,111470.0,0.17941083]
[1761309374447,0.31917258,111480.0,111470.0,0.17941083]
[1761309374651,0.31205901,111480.0,111470.0,0.17941083]
[1761309375304,0.08981901,111480.0,111470.0,0.17941083]
[1761309375502,0.34,111490.0,111480.0,0.17940437]
[1761309375702,0.42981901,111490.0,111480.0,0.17940437]
[1761309375902,0.08981901,111490.0,111480.0,0.21528589]
[1761309376531,0.31189901,111490.0,111480.0,0.21528589]
[1761309376650,0.34808129,111490.0,111480.0,0.21528589]
[1761309377050,0.1794,111520.0,111500.0,0.17936432]
[1761309377308,0.85267081,111510.0,111480.0,0.21528589]
[1761309377509,0.84835979,111510.0,111490.0,0.17938667]
[1761309377717,0.00280255,111510.0,111500.0,0.17937219]
[1761309377970,0.22903357,111530.0,111510.0,0.17934774]
[1761309378189,0.31502538,111530.0,111520.0,0.17934002]
[1761309378398,0.34,111520.0,111500.0,0.17937219]
[1761309378567,0.31877258,111510.0,111500.0,0.21614502]
[1761309378718,0.22184,111510.0,111500.0,0.21614502]
[1761309378913,0.34048433,111530.0,111510.0,0.17935611]
[1761309379257,0.2218,111520.0,111510.0,0.17935611]
[1761309380221,0.00048433,111530.0,111520.0,0.17934002]
[1761309381904,0.00048433,111530.0,111520.0,0.71307825]
[1761309382116,0.00048433,111530.0,111520.0,0.80289726]
[1761309383371,0.001,111550.0,111540.0,0.7130461]
[1761309383573,0.001,111550.0,111540.0,0.80286511]
[1761309383780,0.001,111550.0,111540.0,0.89268412]
[1761309384395,0.40468566,111600.0,111580.0,0.17924359]
[1761309384569,0.49465002,111600.0,111580.0,0.17924359]
[1761309384769,0.00711357,111590.0,111580.0,0.17924359]
[1761309384970,0.34711357,111590.0,111580.0,0.17924359]
[1761309385182,0.34,111590.0,111580.0,0.2690626]
[1761309385387,0.67386319,111600.0,111580.0,0.17924359]
[1761309385603,0.34711357,111590.0,111580.0,0.17924359]
[1761309385821,0.34,111590.0,111580.0,0.17924359]
[1761309386133,0.34,111590.0,111580.0,0.71298182]
[1761309386294,0.34,111590.0,111580.0,0.17924359]
[1761309386460,0.34,111590.0,111580.0,0.2690626]
[1761309387498,0.00423101,111600.0,111590.0,0.17922752]
[1761309387673,0.34423101,111600.0,111590.0,0.17922752]
[1761309389913,0.34423101,111600.0,111590.0,0.71296575]
[1761309390754,0.34423101,111600.0,111590.0,0.17922752]
[1761309391145,0.03618228,111590.0,111570.0,0.18820657]
[1761309391345,0.00711357,111590.0,111580.0,0.17924359]
[1761309391511,0.34423101,111600.0,111570.0,0.2508491]
[1761309391512,0.5234436,111600.0,111570.0,0.2508491]
[1761309391731,0.00711357,111590.0,111570.0,0.2508491]
[1761309392299,0.49652074,111590.0,111570.0,0.24190155]
[1761309392503,0.48940717,111590.0,111570.0,0.24190207]
[1761309392716,0.48940717,111590.0,111570.0,0.06264253]
[1761309392940,0.17924359,111580.0,111560.0,0.17924468]
[1761309393138,0.48940717,111590.0,111560.0,0.19471342]
[1761309393552,0.08981901,111590.0,111570.0,0.17925391]
[1761309393755,0.31717258,111590.0,111570.0,0.17925391]
[1761309393966,0.34423101,111600.0,111580.0,0.17924359]
[1761309394107,0.34423101,111600.0,111570.0,0.80281115]
[1761309394108,0.2202,111590.0,111570.0,0.80281115]
[1761309394312,0.83342175,111600.0,111570.0,0.80281115]
[1761309394517,0.1302323,111600.0,111590.0,0.17922752]
[1761309394761,0.13734587,111600.0,111580.0,0.17924258]
[1761309394966,0.00423101,111600.0,111580.0,0.77663301]
[1761309395169,0.00423101,111600.0,111580.0,0.75870866]
[1761309395428,0.00423101,111600.0,111590.0,0.17922752]
[1761309395916,0.00423101,111600.0,111580.0,0.22497043]
[1761309396127,0.00423101,111600.0,111590.0,0.17922752]
[1761309396335,0.00423101,111600.0,111590.0,0.26904653]
[1761309398776,0.00423101,111600.0,111590.0,0.80278476]
[1761309398980,0.00423101,111600.0,111590.0,0.89260377]
[1761309401044,0.00423101,111600.0,111590.0,0.35886554]
[1761309401988,0.00423101,111600.0,111590.0,0.89260377]
[1761309404809,0.00423101,111600.0,111590.0,0.17922752]
[1761309405390,0.00423101,111600.0,111590.0,0.19567052]
[1761309405614,0.00423101,111600.0,111590.0,0.72940875]
[1761309405826,0.00423101,111600.0,111590.0,0.71296575]
[1761309406040,0.00423101,111600.0,111590.0,0.80278476]
[1761309406252,0.00423101,111600.0,111590.0,0.89260377]
[1761309406902,0.00423101,111600.0,111590.0,0.35886554]
[1761309407113,0.00423101,111600.0,111590.0,1.14278476]
[1761309407749,1e-08,111600.0,111590.0,1.14278476]
[1761309407994,1e-08,111600.0,111590.0,1.15278475]
[1761309408288,0.85670442,111620.0,111610.0,0.17919541]
[1761309408485,0.85670442,111620.0,111610.0,0.83067218]
[1761309408695,0.85670442,111620.0,111610.0,0.81275264]
[1761309408902,0.25571324,111620.0,111610.0,0.82275263]
[1761309409083,0.0004,111630.0,111620.0,0.51917935]
[1761309409326,1e-08,111630.0,111620.0,1.14273659]
[1761309409523,1e-08,111630.0,111620.0,3.19891885]
[1761309409791,1e-08,111630.0,111620.0,3.15273658]
[1761309410014,1e-08,111630.0,111620.0,1.14273659]
[1761309411153,1e-08,111630.0,111620.0,0.60899836]
[1761309411364,1e-08,111630.0,111620.0,1.14273659]
[1761309411791,1e-08,111630.0,111620.0,0.80273659]
[1761309416198,1e-08,111630.0,111620.0,3.14273659]
[1761309416410,0.00888001,111680.0,111670.0,0.17909913]
[1761309416620,0.00936515,111680.0,111670.0,0.17909913]
[1761309416826,0.00936515,111680.0,111670.0,0.19503261]
[1761309417028,0.01205943,111680.0,111670.0,0.19503261]
[1761309417240,0.01205943,111680.0,111670.0,0.17909913]
[1761309419516,0.01205943,111680.0,111660.0,0.17911471]
[1761309419745,0.00936515,111680.0,111660.0,0.17911471]
[1761309419956,0.00235771,111670.0,111660.0,0.17911517]
[1761309420509,0.00235771,111670.0,111650.0,0.53436683]
[1761309420717,0.18845185,111680.0,111660.0,0.17911517]
[1761309420919,0.27827086,111680.0,111660.0,0.17911517]
[1761309421326,0.27827086,111680.0,111640.0,0.17914659]
[1761309421327,0.30510042,111670.0,111640.0,0.17914659]
[1761309421526,0.52623058,111660.0,111630.0,0.18810716]
[1761309421691,0.60893602,111660.0,111630.0,0.179149]
[1761309421905,0.17913156,111650.0,111630.0,0.179149]
[1761309422097,0.17913156,111650.0,111630.0,0.17916223]
[1761309422869,0.17913156,111650.0,111630.0,0.52546892]
[1761309423606,0.1791324,111650.0,111630.0,0.52546892]
[1761309423823,0.61789177,111660.0,111630.0,0.52546892]
[1761309423964,0.60893602,111660.0,111630.0,0.52546892]
[1761309424175,0.00936515,111680.0,111650.0,0.5254379]
[1761309424382,0.28538093,111680.0,111650.0,0.17913121]
[1761309424626,0.2168,111670.0,111660.0,0.17911462]
[1761309424836,0.09918416,111680.0,111660.0,0.17911462]
[1761309424979,0.66301773,111680.0,111660.0,0.17911462]
[1761309425184,0.34936515,111680.0,111670.0,0.52540582]
[1761309425391,0.00936515,111680.0,111670.0,0.52540582]
[1761309425846,0.00936515,111680.0,111670.0,0.17909913]
[1761309426057,0.00936515,111680.0,111670.0,0.54214092]
[1761309426254,0.00936515,111680.0,111670.0,0.52540582]
[1761309426493,0.01205943,111680.0,111670.0,0.52540582]
[1761309426698,0.01205943,111680.0,111670.0,0.17909913]
[1761309426894,0.01205943,111680.0,111670.0,0.53995654]
[1761309427202,0.01205943,111680.0,111670.0,0.52540582]
[1761309427607,0.01205943,111680.0,111650.0,0.18808682]
[1761309427808,0.18844887,111680.0,111660.0,0.17911437]
[1761309428009,0.1862127,111670.0,111630.0,0.18812039]
[1761309428242,0.48529599,111660.0,111640.0,0.17914663]
[1761309428704,0.21632,111660.0,111650.0,0.17913121]
[1761309429133,0.51910126,111670.0,111650.0,0.17913121]
[1761309429344,0.21628,111660.0,111650.0,0.17913121]
[1761309429755,0.60891859,111670.0,111650.0,0.17913121]
[1761309429960,0.60891955,111670.0,111650.0,0.17913121]
[1761309430094,0.21616,111660.0,111630.0,0.17916223]
[1761309430465,0.13311486,111650.0,111620.0,0.1791786]
[1761309430717,0.40420287,111660.0,111640.0,0.52545394]
[1761309430907,0.40416287,111660.0,111640.0,0.17914725]
[1761309431252,0.40416287,111660.0,111640.0,0.17914643]
[1761309431457,0.17913122,111650.0,111630.0,0.52546864]
[1761309431659,0.40416287,111660.0,111640.0,0.17914662]
[1761309431861,0.17913223,111650.0,111630.0,0.52546864]
[1761309432059,0.40416287,111660.0,111640.0,0.17914664]
[1761309432267,0.40408287,111660.0,111640.0,0.17914664]
[1761309432474,0.39511517,111660.0,111640.0,0.53506682]
[1761309432848,0.39511517,111660.0,111640.0,0.52545333]
[1761309432999,0.17911517,111660.0,111640.0,0.52545333]
[1761309433179,0.39705625,111660.0,111640.0,0.52545333]
[1761309433391,0.39491713,111660.0,111640.0,0.52545333]
[1761309433606,0.17913121,111650.0,111630.0,0.17916195]
[1761309433808,0.17913121,111650.0,111630.0,0.54338497]
[1761309434085,0.39485121,111650.0,111630.0,0.52546864]
[1761309434290,0.39481121,111650.0,111630.0,0.52546864]
[1761309435223,0.39481121,111650.0,111620.0,0.27795657]
[1761309435437,0.39481121,111650.0,111630.0,0.54181379]
[1761309435727,0.39481121,111650.0,111630.0,0.5254698]
[1761309436518,0.21568,111650.0,111640.0,0.52545394]
[1761309436729,0.21544,111650.0,111640.0,0.52545394]
[1761309437135,0.21544,111650.0,111620.0,0.1791786]
[1761309437136,0.18808777,111650.0,111620.0,0.1791786]
[1761309437350,0.18626105,111640.0,111620.0,0.17917558]
[1761309437597,0.17914748,111640.0,111620.0,0.17917558]
[1761309437802,0.17914748,111640.0,111620.0,0.19601307]
[1761309438016,0.17914748,111640.0,111620.0,0.19601676]
[1761309438215,0.17914748,111640.0,111620.0,0.17917782]
[1761309438442,0.21532,111630.0,111620.0,0.17917782]
[1761309438631,0.21532,111630.0,111620.0,0.52548451]
[1761309439386,0.2152,111630.0,111620.0,0.52548451]
[1761309440008,0.2152,111630.0,111620.0,0.17917782]
[1761309440208,0.2152,111630.0,111620.0,0.52548451]
[1761309440507,0.1791633,111630.0,111600.0,0.52544362]
[1761309440731,0.1791633,111630.0,111590.0,0.17922724]
[1761309440732,0.22211357,111620.0,111590.0,0.17922724]
[1761309440915,0.17919673,111610.0,111580.0,0.1881679]
[1761309441163,0.17919673,111610.0,111580.0,0.17924319]
[1761309441164,0.40128585,111600.0,111580.0,0.17924319]
[1761309441420,0.17020288,111590.0,111570.0,0.17919895]
[1761309441636,0.39416367,111580.0,111560.0,0.18813298]
[1761309441842,0.39416367,111580.0,111560.0,0.1791692]
[1761309442057,0.39416367,111580.0,111550.0,0.53450646]
[1761309442269,0.17926325,111570.0,111540.0,0.18820069]
[1761309442474,0.21484,111560.0,111550.0,0.17943706]
[1761309442690,0.21484,111560.0,111550.0,0.00014535]
[1761309442904,0.52011701,111560.0,111550.0,0.00014535]
[1761309443123,0.86011701,111560.0,111550.0,0.00014535]
[1761309443324,1.3855037,111560.0,111550.0,0.00014535]
[1761309443592,0.9915837,111560.0,111550.0,0.00014535]
[1761309443798,1.46190644,111560.0,111550.0,0.00014535]
[1761309444002,1.11559975,111560.0,111550.0,0.00014535]
[1761309444206,1.52909809,111560.0,111550.0,0.00014535]
[1761309444412,1.50989535,111560.0,111550.0,0.00014535]
[1761309444849,1.88536977,111560.0,111550.0,0.00014535]
[1761309445796,1.88536977,111560.0,111550.0,1e-08]
[1761309446061,1.89536976,111560.0,111550.0,1e-08]
[1761309446596,1.19991143,111560.0,111550.0,1e-08]
[1761309446801,1.45254369,111560.0,111550.0,1e-08]
[1761309447036,0.64527701,111560.0,111550.0,1e-08]
[1761309447249,1.4424237,111560.0,111550.0,1e-08]
[1761309447586,0.64527701,111560.0,111550.0,1e-08]
[1761309447744,1.46512214,111560.0,111550.0,1e-08]
[1761309447942,1.4423837,111560.0,111550.0,1e-08]
[1761309450370,1.78869039,111560.0,111550.0,1e-08]
[1761309450488,1.79869038,111560.0,111550.0,1e-08]
[1761309451313,1.7625081,111560.0,111550.0,1e-08]
[1761309453482,1.87347006,111560.0,111550.0,1e-08]
[1761309453690,1.43734436,111560.0,111550.0,1e-08]
[1761309454279,1.78365105,111560.0,111550.0,1e-08]
[1761309454890,1.74746877,111560.0,111550.0,1e-08]
[1761309455093,1.09103767,111560.0,111550.0,1e-08]
[1761309455300,1.43734436,111560.0,111550.0,1e-08]
[1761309455507,1.52716337,111560.0,111550.0,1e-08]
[1761309457266,1.62147337,111560.0,111550.0,1e-08]
[1761309457468,1.43734436,111560.0,111550.0,1e-08]
[1761309458384,1.37926436,111560.0,111550.0,1e-08]
[1761309458595,1.73557104,111560.0,111550.0,1e-08]
[1761309458820,1.52237104,111560.0,111550.0,1e-08]
[1761309459028,1.76457142,111560.0,111550.0,1e-08]
[1761309459240,1.85439043,111560.0,111550.0,1e-08]
[1761309459617,1.87848344,111560.0,111550.0,1e-08]
[1761309459836,0.51937219,111500.0,111490.0,0.00408768]
[1761309459997,0.8222312,111500.0,111490.0,0.00457201]
[1761309463719,0.85841348,111500.0,111490.0,0.00457201]
[1761309466793,0.51937219,111500.0,111490.0,0.36881752]
[1761309466967,0.73169219,111500.0,111490.0,0.00457201]
[1761309467404,0.85769348,111500.0,111490.0,0.00457201]
[1761309468617,0.85749348,111500.0,111490.0,0.00457201]
[1761309469854,0.85733348,111500.0,111490.0,0.00457201]
[1761309471315,0.87659527,111500.0,111490.0,0.00457201]
[1761309472695,1.31272097,111500.0,111490.0,0.00457201]
[1761309472928,0.55560275,111470.0,111460.0,0.0002]
[1761309473152,0.55560275,111470.0,111460.0,0.00034481]
[1761309473153,1.2226131,111470.0,111460.0,0.00034481]
[1761309473350,0.90041012,111470.0,111460.0,0.00034481]
[1761309473752,0.99022913,111470.0,111460.0,0.00034481]
[1761309474822,0.17943656,111460.0,111450.0,0.01962534]
[1761309475029,0.28854022,111460.0,111450.0,0.01977105]
[1761309475650,0.41004121,111460.0,111450.0,0.01977105]
[1761309475823,0.39075656,111460.0,111450.0,0.01977105]
[1761309476224,0.60657686,111460.0,111450.0,0.01977105]
[1761309476430,0.51675785,111460.0,111450.0,0.01977105]
[1761309476827,0.64543785,111460.0,111450.0,0.36607774]
[1761309477091,0.85663785,111460.0,111450.0,0.01977105]
[1761309477582,0.64543785,111460.0,111450.0,0.01977105]
[1761309477913,0.85651785,111460.0,111450.0,0.01977105]
[1761309479713,1.26612974,111460.0,111450.0,0.01977105]
[1761309479992,1.28538154,111460.0,111450.0,0.0211217]
[1761309480210,0.93907485,111460.0,111450.0,0.0211217]
[1761309480480,0.87576965,111460.0,111450.0,0.0211217]
[1761309481069,0.66468965,111460.0,111450.0,0.0211217]
[1761309481269,0.85627785,111460.0,111450.0,0.0211217]
[1761309481612,0.85615785,111460.0,111450.0,0.0211217]
[1761309481820,0.93037326,111460.0,111450.0,0.0211217]
[1761309482023,0.9448627,111460.0,111450.0,0.0211217]
[1761309482614,0.87064729,111460.0,111450.0,0.0211217]
[1761309482818,0.83446501,111460.0,111450.0,0.0211217]
[1761309483076,0.87064729,111460.0,111450.0,0.0211217]
[1761309483426,0.64067614,111460.0,111450.0,0.0211217]
[1761309483619,0.85111614,111460.0,111450.0,0.0211217]
[1761309484061,0.44925269,111480.0,111460.0,0.17942716]
[1761309484062,0.18838898,111480.0,111460.0,0.17942716]
[1761309484268,0.16330047,111470.0,111450.0,0.20819634]
[1761309484478,0.38975656,111460.0,111450.0,0.01977105]
[1761309485003,0.42589884,111460.0,111450.0,0.01977105]
[1761309486040,0.42789884,111460.0,111450.0,0.02377105]
[1761309486184,0.42789884,111460.0,111450.0,0.02477105]
[1761309486386,0.39171656,111460.0,111450.0,0.02477105]
[1761309486589,0.42789884,111460.0,111450.0,0.02477105]
[1761309486795,0.42789884,111460.0,111450.0,0.02377105]
[1761309487106,0.51292148,111460.0,111450.0,0.02377105]
[1761309487313,1.40657848,111460.0,111450.0,0.01977105]
[1761309487496,1.43068219,111460.0,111450.0,0.01977105]
[1761309488285,1.43268219,111460.0,111450.0,0.02477105]
[1761309488618,0.89629416,111460.0,111450.0,0.01977105]
[1761309488827,0.21563494,111450.0,111440.0,0.0004]
[1761309489033,1.12015988,111450.0,111440.0,0.0004]
[1761309489234,1.4923006,111450.0,111440.0,0.0004]
[1761309489451,1.46819689,111450.0,111440.0,0.0004]
[1761309489604,0.21565105,111440.0,111430.0,0.0002]
[1761309489816,0.17952533,111410.0,111390.0,0.21352606]
[1761309490016,0.17952533,111410.0,111390.0,0.20454798]
[1761309490017,0.47910434,111410.0,111390.0,0.20454798]
[1761309490219,0.17953321,111400.0,111390.0,0.025]
[1761309491490,0.18153321,111400.0,111390.0,0.031]
[1761309491690,0.21771549,111400.0,111390.0,0.025]
[1761309491893,0.21571549,111400.0,111390.0,0.025]
[1761309492100,0.03818228,111400.0,111390.0,0.21054933]
[1761309492304,0.03618228,111400.0,111390.0,0.20454933]
[1761309492458,0.85527838,111410.0,111400.0,0.17953321]
[1761309492654,0.85495838,111410.0,111390.0,0.73993736]
[1761309492867,0.85495838,111410.0,111390.0,0.20454849]
[1761309493117,0.85495838,111410.0,111390.0,0.025]
[1761309493118,0.17953321,111400.0,111390.0,0.025]
[1761309493322,0.3055345,111400.0,111390.0,0.026]
[1761309493924,0.3075345,111400.0,111390.0,0.032]
[1761309494125,0.3055345,111400.0,111390.0,0.026]
[1761309494371,0.3075345,111400.0,111390.0,0.031]
[1761309494740,0.3055345,111400.0,111390.0,0.026]
[1761309494954,0.3055345,111400.0,111390.0,0.032]
[1761309495334,0.3075345,111400.0,111390.0,0.031]
[1761309495793,0.3075345,111400.0,111390.0,0.03537845]
[1761309498730,0.5163345,111400.0,111390.0,0.03537845]
[1761309499160,0.8563345,111400.0,111390.0,0.03537845]
[1761309499622,0.71395348,111380.0,111330.0,0.0002]
[1761309499624,0.71395348,111380.0,111320.0,1e-08]
[1761309499625,0.21582837,111330.0,111320.0,1e-08]
[1761309499870,1.55492427,111330.0,111320.0,1e-08]
[1761309500110,1.04458726,111330.0,111320.0,1e-08]
[1761309500582,1.13436627,111330.0,111320.0,1e-08]
[1761309500817,1.22418528,111330.0,111320.0,1e-08]
[1761309501295,1.24509455,111330.0,111320.0,1e-08]
[1761309501549,0.825384,111330.0,111320.0,1e-08]
[1761309501778,0.03618228,111290.0,111270.0,0.19771637]
[1761309502015,0.67496461,111290.0,111270.0,0.17974208]
[1761309502241,0.34048332,111290.0,111280.0,0.17972681]
[1761309502475,0.00048332,111290.0,111280.0,0.17972681]
[1761309502704,0.00048332,111290.0,111280.0,0.82190653]
[1761309502944,0.00048332,111290.0,111280.0,3.15393384]
[1761309503164,0.00048332,111290.0,111280.0,3.14893384]
[1761309503441,0.00048332,111290.0,111280.0,3.13893385]
[1761309503677,0.00248332,111290.0,111280.0,1.14893384]
[1761309503921,1e-08,111290.0,111280.0,1.14893384]
[1761309504163,0.20832,111350.0,111280.0,1.14893384]
[1761309504164,0.17963855,111390.0,111350.0,0.00898069]
[1761309504410,0.08981901,111380.0,111350.0,0.00014644]
[1761309504671,0.17959148,111370.0,111350.0,0.00014644]
[1761309504899,0.26941049,111370.0,111350.0,0.17975991]
[1761309505131,0.39681601,111390.0,111360.0,0.19755747]
[1761309505374,0.269385,111380.0,111360.0,0.17959573]
[1761309505586,0.269385,111380.0,111370.0,0.17958157]
[1761309505587,0.08981901,111380.0,111370.0,0.17958157]
[1761309506034,0.26938446,111380.0,111360.0,0.17959573]
[1761309506472,0.18961601,111390.0,111370.0,0.17958157]
[1761309506703,0.27843502,111390.0,111370.0,0.17958157]
[1761309506916,0.17956545,111380.0,111370.0,0.17958157]
[1761309507150,0.17956545,111380.0,111370.0,0.006]
[1761309507151,0.18056545,111380.0,111370.0,0.006]
[1761309507578,0.17956545,111380.0,111360.0,0.18957561]
[1761309507791,0.17956545,111380.0,111370.0,0.006]
[1761309508003,0.30556674,111380.0,111370.0,0.006]
[1761309508215,0.30556674,111380.0,111370.0,0.17958157]
[1761309508216,0.12600129,111380.0,111370.0,0.17958157]
[1761309508447,0.30556881,111380.0,111360.0,0.18857561]
[1761309509081,0.30556881,111380.0,111370.0,0.17958157]
[1761309509291,0.30556674,111380.0,111370.0,0.17958157]
[1761309509533,0.17957112,111380.0,111360.0,0.18857561]
[1761309509780,0.18057112,111380.0,111370.0,0.005]
[1761309509987,0.18057112,111380.0,111370.0,0.18458157]
[1761309510396,0.17957112,111380.0,111360.0,0.18957561]
[1761309510857,0.18057112,111380.0,111360.0,0.19457561]
[1761309511118,0.5557319,111390.0,111370.0,0.17958157]
[1761309511329,0.001,111380.0,111370.0,0.18458157]
[1761309511771,0.18056545,111380.0,111370.0,0.18458157]
[1761309511984,0.001,111380.0,111370.0,0.18458157]
[1761309512200,0.001,111380.0,111370.0,0.7189696]
[1761309513079,0.001,111380.0,111370.0,0.80878861]
[1761309513285,0.51951791,111410.0,111390.0,0.17953435]
[1761309513500,0.42981901,111410.0,111400.0,0.17953321]
[1761309513749,0.42549421,111430.0,111400.0,0.71392124]
[1761309513958,0.45787322,111430.0,111410.0,0.19746879]
[1761309514182,0.17950098,111420.0,111400.0,0.18850987]
[1761309514395,0.27835322,111430.0,111410.0,0.17951709]
[1761309514396,0.18853421,111430.0,111410.0,0.17951709]
[1761309514609,0.00048391,111420.0,111410.0,0.17951709]
[1761309514831,0.17998489,111420.0,111400.0,0.18850987]
[1761309515084,0.2698039,111420.0,111390.0,0.18851181]
[1761309515293,0.2698039,111420.0,111400.0,0.17953243]
[1761309515505,0.30598618,111420.0,111410.0,0.001]
[1761309515939,1.18037421,111420.0,111410.0,0.001]
[1761309516165,1.19954233,111420.0,111410.0,0.001]
[1761309516407,0.6651543,111420.0,111410.0,0.001]
[1761309516631,0.55569937,111410.0,111400.0,0.005]
[1761309516873,0.55573161,111390.0,111380.0,0.00033803]
[1761309517099,1.38673865,111390.0,111380.0,0.00033803]
[1761309517312,0.85235062,111390.0,111380.0,0.00033803]
[1761309518012,1.38673865,111390.0,111380.0,0.00033803]
[1761309518235,0.8715543,111390.0,111380.0,0.00033803]
[1761309518684,0.85235062,111390.0,111380.0,0.00033803]
[1761309519665,0.85235062,111390.0,111370.0,0.17890401]
[1761309519666,0.21574773,111380.0,111370.0,0.17890401]
[1761309520304,0.60936834,111390.0,111370.0,0.73125019]
[1761309520449,0.60936834,111390.0,111370.0,0.17890401]
[1761309520665,0.60936834,111390.0,111370.0,0.19398425]
[1761309520831,0.64555062,111390.0,111380.0,0.17956545]
[1761309521034,0.64555062,111390.0,111370.0,0.18005045]
[1761309521230,0.12600129,111390.0,111380.0,0.17956545]
[1761309521484,0.17954933,111390.0,111380.0,0.19752199]
[1761309521679,0.17954933,111390.0,111380.0,0.17956545]
[1761309521896,0.18852397,111400.0,111380.0,0.17956545]
[1761309522098,0.08981901,111400.0,111380.0,0.17956545]
[1761309522313,0.60935222,111400.0,111380.0,0.17956545]
[1761309522518,0.46600129,111400.0,111390.0,0.17954933]
[1761309522938,0.36799602,111420.0,111400.0,0.17952699]
[1761309523143,0.17950098,111420.0,111410.0,0.17951709]
[1761309523348,0.26931999,111420.0,111400.0,0.17952699]
[1761309523546,0.23553739,111450.0,111430.0,0.17947648]
[1761309523769,0.23553739,111450.0,111430.0,0.17948468]
[1761309523770,0.08981901,111440.0,111430.0,0.17948468]
[1761309523928,0.26928807,111440.0,111430.0,0.17948487]
[1761309524318,0.26977228,111440.0,111430.0,0.17948487]
[1761309524536,0.09030322,111440.0,111430.0,0.17948487]
[1761309524750,0.26977199,111440.0,111420.0,0.17948277]
[1761309524951,0.1264855,111440.0,111430.0,0.18048487]
[1761309525162,0.30595427,111440.0,111430.0,0.001]
[1761309525439,0.30595427,111440.0,111430.0,0.18048487]
[1761309525683,0.35540132,111440.0,111430.0,0.001]
[1761309525921,1.43566935,111440.0,111430.0,0.001]
[1761309526090,0.90228132,111440.0,111430.0,0.001]
[1761309526238,0.03618228,111410.0,111400.0,0.17952699]
[1761309526443,0.21569937,111410.0,111390.0,0.18852679]
[1761309526650,0.21569937,111410.0,111400.0,0.17953321]
[1761309526855,0.03618228,111410.0,111400.0,0.17953321]
[1761309527459,0.03618228,111410.0,111400.0,0.18053321]
[1761309528002,0.03618228,111410.0,111400.0,0.17953321]
[1761309528413,0.21569937,111410.0,111390.0,0.18852679]
[1761309528594,0.21569937,111410.0,111390.0,0.17954933]